Workbook

Sheet КИТАЕВ склерометр
B1: Кубы | P1: Кубы | S1: =IF(P1="Отрыв со скалыванием",2.5,"") ->  | T1: =IF(P1="Кубы",10,"") -> 10 | U1: =IF(P1="Кубы",0.95,"") -> 0.95 | V1: =IF(P1="Кубы",100,"") -> 100
B2: Отрыв со скалыванием
B4: № | C4: Значение склерометра | M4: max | N4: min | O4: Среднее значение по склерометру | Q4: Разделение на группы | R4: Значение прочности кубов (КН), показания отрыва | T4: По градуировочной зависимости RiH | V4: Корректировка путем отбраковки RiH-Riф/Sт | X4: Примечание | AZ4: Для построения графика
AA6: ДО ОТБРАКОВКИ | AK6: ПОСЛЕ ОТБРАКОВКИ | AV6: Коэффициент корреляции град.зависимости | AZ6: № | BA6: Среднее значение по склерометру | BB6: Значение ПИБ | BC6: Отбракованные показания
R7: Показания | S7: Показания Riф (Мпа) | T7: До отбраковки | U7: После отбраковки | V7: До отбраковки | W7: После отбраковки | AA7: Промежуточные данные для расчета а1 | AI7: Sт | AK7: Промежуточные данные для расчета а1 | AS7: Sт | AV7: =U58 -> 37.38358571 | BB7: Показания Riф (Мпа)
B8: 1 | C8: 22 | E8: 24 | F8: 20 | G8: 21 | H8: 21 | I8: 22 | K8: 25 | L8: 24 | M8: =IFERROR(MAX(C8:L8)-AVERAGE(C8:L8),"") -> 2.625 | N8: =IFERROR(AVERAGE(C8:L8)-MIN(C8:L8),"") -> 2.375 | O8: =IFERROR(AVERAGE(C8:L8),"") -> 22.375 | Q8: =IFERROR(IF(SUM(O8:P8)=0,"",IF(SUM(O8:P8)<=$O$58,1,2)),"") -> 1 | R8: 349.8 | S8: =IF(R8="","",(IF($P$1=$B$1,((R8*$T$1)/$V$1)*$U$1,IF($P$1=$B$2,R8*$S$1,"")))) -> 33.231 | T8: =IF(SUM(O8:P8)=0,"",$AF$8*SUM(O8:P8)+($AE$10)) -> 30.60826473 | U8: =IF(SUM(O8:P8)=0,"",$AP$8*SUM(O8:P8)+($AO$10)) -> 30.60826473 | V8: =IFERROR(((T8-S8)/$AI$58),"") -> -0.5176377271 | W8: =IFERROR(((U8-S8)/$AS$58),"") -> -0.5176377271 | X8: =IF(COUNT(V8:W8)=0,"",IF(V8>2,"Отбраковывается",IF(W8>2,"Отбраковывается",IF(V8<-2,"Отбраковывается",IF(W8<-2,"Отбраковывается",""))))) ->  | Y8: 1 | AA8: 1 | AB8: =IF(SUM(O8:P8)=0,"",(SUM(O8:P8)-$O$58)*(S8-$S$58)) -> 40.14830039 | AC8: =IF(SUM(O8:P8)=0,"",POWER((SUM(O8:P8)-$O$58),2)) -> 93.47535403 | AD8: а1= | AE8: =IF(AB58=0,"",AB58) -> 395.6366754 | AF8: =IFERROR(AE8/AE9,"") -> 0.7007793822 | AH8: 1 | AI8: =IFERROR(POWER(S8-T8,2),"") -> 6.878740318 | AK8: 1 | AL8: =IF(SUM(O8:P8)=0,"",(SUM(O8:P8)-$O$58)*(S8-$S$58)) -> 40.14830039 | AM8: =IF(SUM(O8:P8)=0,"",POWER((SUM(O8:P8)-$O$58),2)) -> 93.47535403 | AN8: а1= | AO8: =IF(AL58=0,"",AL58) -> 395.6366754 | AP8: =IFERROR(AO8/AO9,"") -> 0.7007793822 | AR8: 1 | AS8: =IFERROR(POWER(S8-U8,2),"") -> 6.878740318 | AU8: 1 | AV8: =IFERROR((U8-$U$58)*(S8-$U$58),"") -> 28.13510115 | AW8: =IFERROR(POWER((U8-$U$58),2),"") -> 45.9049745 | AX8: =IFERROR(POWER((S8-$U$58),2),"") -> 17.24396811 | AZ8: 1 | BA8: =IF(SUM(O8:P8)=0,"",SUM(O8:P8)) -> 22.375 | BB8: =IF(S8=0,"",S8) -> 33.231 | BC8: =IF(X8="Отбраковывается",S8,"") -> 
B9: =B8+1 -> 2 | C9: 22 | D9: 25 | F9: 24 | G9: 22 | H9: 21 | I9: 23 | J9: 20 | K9: 19 | L9: 20 | M9: =IFERROR(MAX(C9:L9)-AVERAGE(C9:L9),"") -> 3.222222222 | N9: =IFERROR(AVERAGE(C9:L9)-MIN(C9:L9),"") -> 2.777777778 | O9: =IFERROR(AVERAGE(C9:L9),"") -> 21.77777778 | Q9: =IFERROR(IF(SUM(O9:P9)=0,"",IF(SUM(O9:P9)<=$O$58,1,2)),"") -> 1 | R9: 346.1 | S9: 32.8795 | T9: =IF(SUM(O9:P9)=0,"",$AF$8*SUM(O9:P9)+($AE$10)) -> 30.18974371 | U9: =IF(SUM(O9:P9)=0,"",$AP$8*SUM(O9:P9)+($AO$10)) -> 30.18974371 | V9: =IFERROR(((T9-S9)/$AI$58),"") -> -0.5308653711 | W9: =IFERROR(((U9-S9)/$AS$58),"") -> -0.5308653711 | Y9: =Y8+1 -> 2 | AA9: =AA8+1 -> 2 | AB9: =IF(SUM(O9:P9)=0,"",(SUM(O9:P9)-$O$58)*(S9-$S$58)) -> 46.23663573 | AC9: =IF(SUM(O9:P9)=0,"",POWER((SUM(O9:P9)-$O$58),2)) -> 105.3802342 | AE9: =IF(AC58=0,"",AC58) -> 564.5666602 | AH9: =AH8+1 -> 2 | AI9: =IFERROR(POWER(S9-T9,2),"") -> 7.234788921 | AK9: =AK8+1 -> 2 | AL9: =IF(SUM(O9:P9)=0,"",(SUM(O9:P9)-$O$58)*(S9-$S$58)) -> 46.23663573 | AM9: =IF(SUM(O9:P9)=0,"",POWER((SUM(O9:P9)-$O$58),2)) -> 105.3802342 | AO9: =IF(AM58=0,"",AM58) -> 564.5666602 | AR9: =AR8+1 -> 2 | AS9: =IFERROR(POWER(S9-U9,2),"") -> 7.234788921 | AU9: =AU8+1 -> 2 | AV9: =IFERROR((U9-$U$58)*(S9-$U$58),"") -> 32.40168102 | AW9: =IFERROR(POWER((U9-$U$58),2),"") -> 51.75136284 | AX9: =IFERROR(POWER((S9-$U$58),2),"") -> 20.28678812 | AZ9: =AZ8+1 -> 2 | BA9: =IF(SUM(O9:P9)=0,"",SUM(O9:P9)) -> 21.77777778 | BB9: 32.8795
B10: =B9+1 -> 3 | E10: 28 | F10: 28 | H10: 26 | I10: 26 | J10: 29 | K10: 27 | M10: 1.666666667 | N10: 1.333333333 | O10: 27.33333333 | Q10: 1 | R10: 374.9 | S10: 35.6155 | T10: 34.0829625 | U10: 34.0829625 | V10: -0.3024701876 | W10: -0.3024701876 | Y10: =Y9+1 -> 3 | AA10: =AA9+1 -> 3 | AB10: 8.327563436 | AC10: 22.18345919 | AD10: а0= | AE10: =IFERROR(S58-AF8*O58,"") -> 14.92832605 | AH10: =AH9+1 -> 3 | AI10: 2.348671201 | AK10: =AK9+1 -> 3 | AL10: 8.327563436 | AM10: 22.18345919 | AN10: а0= | AO10: =IFERROR(S58-AP8*O58,"") -> 14.92832605 | AR10: =AR9+1 -> 3 | AS10: 2.348671201 | AU10: =AU9+1 -> 3 | AV10: 5.83578476 | AW10: 10.89411363 | AX10: 3.126127093 | AZ10: =AZ9+1 -> 3 | BA10: 27.33333333 | BB10: 35.6155
B11: =B10+1 -> 4 | D11: 30 | F11: 28 | H11: 27 | I11: 26 | K11: 27 | L11: 32 | M11: 3.666666667 | N11: 2.333333333 | O11: 28.33333333 | Q11: 1 | R11: 353.2 | S11: 33.554 | T11: 34.78374188 | U11: 34.78374188 | V11: 0.2427087465 | W11: 0.2427087465 | Y11: =Y10+1 -> 4 | AA11: =AA10+1 -> 4 | AB11: 14.20750248 | AC11: 13.76359524 | AH11: =AH10+1 -> 4 | AI11: 1.512265087 | AK11: =AK10+1 -> 4 | AL11: 14.20750248 | AM11: 13.76359524 | AR11: =AR10+1 -> 4 | AS11: 1.512265087 | AU11: =AU10+1 -> 4 | AV11: 9.956324814 | AW11: 6.759187971 | AX11: 14.66572674 | AZ11: =AZ10+1 -> 4 | BA11: 28.33333333 | BB11: 33.554
B12: 5 | C12: 34 | E12: 30 | F12: 29 | H12: 30 | I12: 31 | J12: 34 | L12: 34 | M12: 2.285714286 | N12: 2.714285714 | O12: 31.71428571 | Q12: 1 | R12: 367.7 | S12: 34.9315 | T12: 37.1530436 | U12: 37.1530436 | V12: 0.4384562905 | W12: 0.4384562905 | Y12: 5 | AA12: 5 | AB12: 0.8066861574 | AC12: 0.1082275718 | AD12: Уровнение градуировочной зависимости | AH12: 5 | AI12: 4.935255963 | AK12: 5 | AL12: 0.8066861574 | AM12: 0.1082275718 | AN12: Уровнение градуировочной зависимости | AR12: 5 | AS12: 4.935255963 | AU12: 5 | AV12: 0.5653090271 | AW12: 0.05314966685 | AX12: 6.01272435 | AZ12: 5 | BA12: 31.71428571 | BB12: 34.9315
B13: 6 | C13: 36 | E13: 35 | F13: 38 | G13: 37 | H13: 33 | I13: 35 | J13: 35 | L13: 35 | M13: 2.5 | N13: 2.5 | O13: 35.5 | Q13: 2 | R13: 492 | S13: 46.74 | T13: 39.80599412 | U13: 39.80599412 | V13: -1.368534248 | W13: -1.368534248 | Y13: 6 | AA13: 6 | AB13: 32.34264187 | AC13: 11.94901474 | AH13: 6 | AI13: 48.08043758 | AK13: 6 | AL13: 32.34264187 | AM13: 11.94901474 | AR13: 6 | AS13: 48.08043758 | AU13: 6 | AV13: 22.66505659 | AW13: 5.868062472 | AX13: 87.54248829 | AZ13: 6 | BA13: 35.5 | BB13: 46.74
B14: 7 | C14: 31 | E14: 35 | F14: 34 | G14: 37 | H14: 34 | I14: 31 | J14: 30 | K14: 33 | M14: 3.875 | N14: 3.125 | O14: 33.125 | Q14: 2 | R14: 517 | S14: 49.115 | T14: 38.14164308 | U14: 38.14164308 | V14: -2.165763197 | W14: -2.165763197 | X14: Отбраковывается | Y14: 7 | AA14: 7 | AB14: 12.69027784 | AC14: 1.170149948 | AD14: ="Rн = " & FIXED( AF8,2) & " * H + " & FIXED(AE10,2) -> Rн = 0,70 * H + 14,93 | AH14: 7 | AI14: 120.414562 | AK14: 7 | AL14: 12.69027784 | AM14: 1.170149948 | AN14: ="Rн = " & FIXED(AP8,2) & " * H + " & FIXED(AO10,2) -> Rн = 0,70 * H + 14,93 | AR14: 7 | AS14: 120.414562 | AU14: 7 | AV14: 8.893085066 | AW14: 0.574650977 | AX14: 137.6260811 | AZ14: 7 | BA14: 33.125 | BB14: 49.115 | BC14: 49.115
B15: 8 | D15: 32 | F15: 31 | H15: 37 | I15: 36 | J15: 34 | K15: 33 | L15: 36 | M15: 2.857142857 | N15: 3.142857143 | O15: 34.14285714 | Q15: 2 | R15: 428 | S15: 40.66 | T15: 38.85493638 | U15: 38.85493638 | V15: -0.3562574677 | W15: -0.3562574677 | Y15: 8 | AA15: 8 | AB15: 6.879132688 | AC15: 4.408285881 | AH15: 8 | AI15: 3.258254656 | AK15: 8 | AL15: 6.879132688 | AM15: 4.408285881 | AR15: 8 | AS15: 3.258254656 | AU15: 8 | AV15: 4.820754355 | AW15: 2.164872795 | AX15: 10.73489057 | AZ15: 8 | BA15: 34.14285714 | BB15: 40.66
B16: 9 | C16: 31 | D16: 28 | E16: 28 | F16: 33 | G16: 29 | H16: 34 | I16: 32 | L16: 32 | M16: 3.125 | N16: 2.875 | O16: 30.875 | Q16: 1 | R16: 360.6 | S16: 34.257 | T16: 36.56488947 | U16: 36.56488947 | V16: 0.4554979963 | W16: 0.4554979963 | Y16: 9 | AA16: 9 | AB16: 3.652681617 | AC16: 1.364843825 | AH16: 9 | AI16: 5.326353828 | AK16: 9 | AL16: 3.652681617 | AM16: 1.364843825 | AR16: 9 | AS16: 5.326353828 | AU16: 9 | AV16: 2.559723967 | AW16: 0.6702635326 | AX16: 9.775538229 | AZ16: 9 | BA16: 30.875 | BB16: 34.257
B17: 10 | C17: 28 | E17: 29 | F17: 32 | H17: 29 | I17: 33 | J17: 29 | K17: 35 | L17: 34 | M17: 3.875 | N17: 3.125 | O17: 31.125 | Q17: 1 | R17: 336 | S17: 31.92 | T17: 36.74008432 | U17: 36.74008432 | V17: 0.9513188452 | W17: 0.9513188452 | Y17: 10 | AA17: 10 | AB17: 5.017021208 | AC17: 0.8432111724 | AH17: 10 | AI17: 23.23321286 | AK17: 10 | AL17: 5.017021208 | AM17: 0.8432111724 | AR17: 10 | AS17: 23.23321286 | AU17: 10 | AV17: 3.515825023 | AW17: 0.414094044 | AX17: 29.85076886 | AZ17: 10 | BA17: 31.125 | BB17: 31.92
B18: 11 | C18: 32 | D18: 30 | E18: 30 | F18: 29 | G18: 29 | I18: 30 | J18: 30 | K18: 29 | L18: 28 | M18: 2.333333333 | N18: 1.666666667 | O18: 29.66666667 | Q18: 1 | R18: 364.6 | S18: 34.637 | T18: 35.71811439 | U18: 35.71811439 | V18: 0.2133747924 | W18: 0.2133747924 | Y18: 11 | AA18: 11 | AB18: 6.527531872 | AC18: 5.648221093 | AH18: 11 | AI18: 1.16880832 | AK18: 11 | AL18: 6.527531872 | AM18: 5.648221093 | AR18: 11 | AS18: 1.16880832 | AU18: 11 | AV18: 4.574359753 | AW18: 2.773794739 | AX18: 7.543733086 | AZ18: 11 | BA18: 29.66666667 | BB18: 34.637
B19: 12 | C19: 28 | E19: 33 | F19: 28 | G19: 29 | H19: 35 | I19: 33 | J19: 34 | K19: 34 | L19: 34 | M19: 3 | N19: 4 | O19: 32 | Q19: 1 | R19: 410 | S19: 38.95 | T19: 37.35326628 | U19: 37.35326628 | V19: -0.3151403124 | W19: -0.3151403124 | Y19: 12 | AA19: 12 | AB19: -0.06777139359 | AC19: 0.001871886714 | AH19: 12 | AI19: 2.549558573 | AK19: 12 | AL19: -0.06777139359 | AM19: 0.001871886714 | AR19: 12 | AS19: 2.549558573 | AU19: 12 | AV19: -0.04749279533 | AW19: 0.0009192681082 | AX19: 2.453653714 | AZ19: 12 | BA19: 32 | BB19: 38.95
B20: 13 | C20: 30 | D20: 25 | E20: 23 | F20: 26 | H20: 30 | I20: 28 | K20: 24 | L20: 28 | M20: 3.25 | N20: 3.75 | O20: 26.75 | Q20: 1 | R20: 333.5 | S20: 31.6825 | T20: 33.67417452 | U20: 33.67417452 | V20: 0.3930880419 | W20: 0.3930880419 | Y20: 13 | AA20: 13 | AB20: 30.17735922 | AC20: 28.0186576 | AH20: 13 | AI20: 3.966767406 | AK20: 13 | AL20: 30.17735922 | AM20: 28.0186576 | AR20: 13 | AS20: 3.966767406 | AU20: 13 | AV20: 21.14767115 | AW20: 13.75973139 | AX20: 32.50237832 | AZ20: 13 | BA20: 26.75 | BB20: 31.6825
B21: 14 | C21: 26 | D21: 30 | E21: 29 | H21: 28 | I21: 28 | J21: 24 | K21: 28 | L21: 28 | M21: 2.375 | N21: 3.625 | O21: 27.625 | Q21: 1 | R21: 352.6 | S21: 33.497 | T21: 34.28735648 | U21: 34.28735648 | V21: 0.1559891832 | W21: 0.1559891832 | Y21: 14 | AA21: 14 | AB21: 17.17196682 | AC21: 19.52106832 | AH21: 14 | AI21: 0.6246633695 | AK21: 14 | AL21: 17.17196682 | AM21: 19.52106832 | AR21: 14 | AS21: 0.6246633695 | AU21: 14 | AV21: 12.0337603 | AW21: 9.586635455 | AX21: 15.10554851 | AZ21: 14 | BA21: 27.625 | BB21: 33.497
B22: 15 | D22: 37 | E22: 34 | F22: 33 | G22: 33 | H22: 38 | I22: 38 | J22: 35 | K22: 32 | M22: 3 | N22: 3 | O22: 35 | Q22: 2 | R22: 447 | S22: 42.465 | T22: 39.45560443 | U22: 39.45560443 | V22: -0.59395117 | W22: -0.59395117 | Y22: 15 | AA22: 15 | AB22: 15.02439391 | AC22: 8.74228005 | AH22: 15 | AI22: 9.056461718 | AK22: 15 | AL22: 15.02439391 | AM22: 8.74228005 | AR22: 15 | AS22: 9.056461718 | AU22: 15 | AV22: 10.52878548 | AW22: 4.293261544 | AX22: 25.82077114 | AZ22: 15 | BA22: 35 | BB22: 42.465
B23: 16 | C23: 36 | D23: 37 | E23: 36 | F23: 41 | G23: 36 | H23: 37 | I23: 42 | J23: 38 | K23: 37 | L23: 41 | M23: 3.9 | N23: 2.1 | O23: 38.1 | Q23: 2 | R23: 460 | S23: 43.7 | T23: 41.62802051 | U23: 41.62802051 | V23: -0.4089374798 | W23: -0.4089374798 | Y23: 16 | AA23: 16 | AB23: 38.25684555 | AC23: 36.68403515 | AH23: 16 | AI23: 4.293099001 | AK23: 16 | AL23: 38.25684555 | AM23: 36.68403515 | AR23: 16 | AS23: 4.293099001 | AU23: 16 | AV23: 26.80960859 | AW23: 18.01522675 | AX23: 39.89708943 | AZ23: 16 | BA23: 38.1 | BB23: 43.7
B24: 17 | C24: 34 | E24: 31 | F24: 33 | G24: 37 | H24: 35 | I24: 33 | J24: 34 | K24: 33 | L24: 35 | M24: 3.111111111 | N24: 2.888888889 | O24: 33.88888889 | Q24: 2 | R24: 477 | S24: 45.315 | T24: 38.67696067 | U24: 38.67696067 | V24: -1.310120631 | W24: -1.310120631 | Y24: 17 | AA24: 17 | AB24: 14.63840525 | AC24: 3.406326409 | AH24: 17 | AI24: 44.06356617 | AK24: 17 | AL24: 14.63840525 | AM24: 3.406326409 | AR24: 17 | AS24: 44.06356617 | AU24: 17 | AV24: 10.25829259 | AW24: 1.672818772 | AX24: 62.90733257 | AZ24: 17 | BA24: 33.88888889 | BB24: 45.315
B25: 18 | C25: 36 | D25: 30 | E25: 30 | F25: 36 | G25: 30 | K25: 35 | M25: 3.166666667 | N25: 2.833333333 | O25: 32.83333333 | Q25: 2 | R25: 373.4 | S25: 35.473 | T25: 37.9372491 | U25: 37.9372491 | V25: 0.4863580076 | W25: 0.4863580076 | Y25: 18 | AA25: 18 | AB25: -1.509492686 | AC25: 0.6242074876 | AH25: 18 | AI25: 6.072523619 | AK25: 18 | AL25: -1.509492686 | AM25: 0.6242074876 | AR25: 18 | AS25: 6.072523619 | AU25: 18 | AV25: -1.057821352 | AW25: 0.3065431428 | AX25: 3.650337772 | AZ25: 18 | BA25: 32.83333333 | BB25: 35.473
B26: 19 | C26: 32 | D26: 37 | F26: 34 | G26: 33 | H26: 34 | I26: 38 | J26: 34 | K26: 34 | M26: 3.5 | N26: 2.5 | O26: 34.5 | Q26: 2 | R26: 234.5 | S26: 22.2775 | T26: 39.10521474 | U26: 39.10521474 | V26: 3.321212055 | W26: 3.321212055 | X26: Отбраковывается | Y26: 19 | AA26: 19 | AB26: -37.11164486 | AC26: 6.035545356 | AH26: 19 | AI26: 283.1719832 | AK26: 19 | AL26: -37.11164486 | AM26: 6.035545356 | AR26: 19 | AS26: 283.1719832 | AU26: 19 | AV26: -26.00707556 | AW26: 2.964006486 | AX26: 228.1938256 | AZ26: 19 | BA26: 34.5 | BB26: 22.2775 | BC26: 22.2775
B27: 20 | C27: 34 | D27: 37 | E27: 39 | F27: 40 | G27: 36 | H27: 35 | I27: 38 | J27: 38 | L27: 36 | M27: 3 | N27: 3 | O27: 37 | Q27: 2 | R27: 413 | S27: 39.235 | T27: 40.85716319 | U27: 40.85716319 | V27: 0.3201592152 | W27: 0.3201592152 | Y27: 20 | AA27: 20 | AB27: 9.176969423 | AC27: 24.56921883 | AH27: 20 | AI27: 2.631413418 | AK27: 20 | AL27: 9.176969423 | AM27: 24.56921883 | AR27: 20 | AS27: 2.631413418 | AU27: 20 | AV27: 6.431030963 | AW27: 12.06574049 | AX27: 3.427734857 | AZ27: 20 | BA27: 37 | BB27: 39.235
B28: 21 | C28: 38 | D28: 39 | F28: 42 | G28: 36 | H28: 38 | I28: 36 | J28: 41 | K28: 37 | L28: 38 | M28: 3.666666667 | N28: 2.333333333 | O28: 38.33333333 | Q28: 2 | R28: 457 | S28: 43.415 | T28: 41.7915357 | U28: 41.7915357 | V28: -0.3204160093 | W28: -0.3204160093 | Y28: 21 | AA28: 21 | AB28: 37.93800616 | AC28: 39.56495579 | AH28: 21 | AI28: 2.635636332 | AK28: 21 | AL28: 37.93800616 | AM28: 39.56495579 | AR28: 21 | AS28: 2.635636332 | AU28: 21 | AV28: 26.58617252 | AW28: 19.43002308 | AX28: 36.37795829 | AZ28: 21 | BA28: 38.33333333 | BB28: 43.415
B29: 22 | C29: 34 | D29: 37 | E29: 34 | G29: 33 | I29: 35 | J29: 34 | M29: 2.5 | N29: 1.5 | O29: 34.5 | Q29: 2 | R29: 362.9 | S29: 34.4755 | T29: 39.10521474 | U29: 39.10521474 | V29: 0.9137464373 | W29: 0.9137464373 | Y29: 22 | AA29: 22 | AB29: -7.144395067 | AC29: 6.035545356 | AH29: 22 | AI29: 21.43425853 | AK29: 22 | AL29: -7.144395067 | AM29: 6.035545356 | AR29: 22 | AS29: 21.43425853 | AU29: 22 | AV29: -5.006644761 | AW29: 2.964006486 | AX29: 8.456962522 | AZ29: 22 | BA29: 34.5 | BB29: 34.4755
B30: 23 | C30: 39 | D30: 36 | E30: 39 | F30: 36 | H30: 37 | J30: 39 | L30: 40 | M30: 2 | N30: 2 | O30: 38 | Q30: 2 | R30: 357.8 | S30: 33.991 | T30: 41.55794257 | U30: 41.55794257 | V30: 1.493454179 | W30: 1.493454179 | Y30: 23 | AA30: 23 | AB30: -20.20873303 | AC30: 35.48268821 | AH30: 23 | AI30: 57.25861991 | AK30: 23 | AL30: -20.20873303 | AM30: 35.48268821 | AR30: 23 | AS30: 57.25861991 | AU30: 23 | AV30: -14.16186345 | AW30: 17.42525518 | AX30: 11.50963783 | AZ30: 23 | BA30: 38 | BB30: 33.991
B31: 24 | C31: 29 | E31: 30 | F31: 26 | H31: 28 | I31: 28 | J31: 30 | K31: 28 | L31: 28 | M31: 1.625 | N31: 2.375 | O31: 28.375 | Q31: 1 | R31: 312.5 | S31: 29.6875 | T31: 34.81294102 | U31: 34.81294102 | V31: 1.011585754 | W31: 1.011585754 | Y31: 24 | AA31: 24 | AB31: 28.23128422 | AC31: 13.45617036 | AH31: 24 | AI31: 26.27014564 | AK31: 24 | AL31: 28.23128422 | AM31: 13.45617036 | AR31: 24 | AS31: 26.27014564 | AU31: 24 | AV31: 19.78390191 | AW31: 6.608214148 | AX31: 59.22973532 | AZ31: 24 | BA31: 28.375 | BB31: 29.6875
B32: 25 | C32: 28 | D32: 26 | E32: 30 | F32: 24 | G32: 26 | H32: 26 | J32: 26 | K32: 29 | L32: 25 | M32: 3.333333333 | N32: 2.666666667 | O32: 26.66666667 | Q32: 1 | R32: 312.8 | S32: 29.716 | T32: 33.61577624 | U32: 33.61577624 | V32: 0.7696816868 | W32: 0.7696816868 | Y32: 25 | AA32: 25 | AB32: 41.22553092 | AC32: 28.90781293 | AH32: 25 | AI32: 15.20825473 | AK32: 25 | AL32: 41.22553092 | AM32: 28.90781293 | AR32: 25 | AS32: 15.20825473 | AU32: 25 | AV32: 28.89000209 | AW32: 14.19638822 | AX32: 58.79187069 | AZ32: 25 | BA32: 26.66666667 | BB32: 29.716
B33: 26 | C33: 38 | D33: 38 | E33: 34 | F33: 38 | G33: 37 | H33: 37 | I33: 36 | J33: 37 | K33: 35 | L33: 36 | M33: 1.4 | N33: 2.6 | O33: 36.6 | Q33: 2 | R33: 458 | S33: 43.51 | T33: 40.57685144 | U33: 40.57685144 | V33: -0.5789026327 | W33: -0.5789026327 | Y33: 26 | AA33: 26 | AB33: 27.91644452 | AC33: 20.76383107 | AH33: 26 | AI33: 8.603360487 | AK33: 26 | AL33: 27.91644452 | AM33: 20.76383107 | AR33: 26 | AS33: 8.603360487 | AU33: 26 | AV33: 19.56326875 | AW33: 10.19694598 | AX33: 37.532952 | AZ33: 26 | BA33: 36.6 | BB33: 43.51
B34: 27 | C34: 33 | D34: 32 | E34: 30 | F34: 31 | G34: 32 | H34: 34 | J34: 32 | L34: 31 | M34: 2.125 | N34: 1.875 | O34: 31.875 | Q34: 1 | R34: 433 | S34: 41.135 | T34: 37.26566886 | U34: 37.26566886 | V34: -0.7636728716 | W34: -0.7636728716 | Y34: 27 | AA34: 27 | AB34: -0.6312328732 | AC34: 0.02831321324 | AH34: 27 | AI34: 14.97172349 | AK34: 27 | AL34: -0.6312328732 | AM34: 0.02831321324 | AR34: 27 | AS34: 14.97172349 | AU34: 27 | AV34: -0.4423549829 | AW34: 0.01390438523 | AX34: 14.07310914 | AZ34: 27 | BA34: 31.875 | BB34: 41.135
B35: 28 | C35: 34 | E35: 36 | F35: 32 | G35: 37 | H35: 36 | K35: 34 | L35: 34 | M35: 2.285714286 | N35: 2.714285714 | O35: 34.71428571 | Q35: 2 | R35: 467 | S35: 44.365 | T35: 39.25538175 | U35: 39.25538175 | V35: -1.008462884 | W35: -1.008462884 | Y35: 28 | AA35: 28 | AB35: 18.64750003 | AC35: 7.134350021 | AH35: 28 | AI35: 26.1081987 | AK35: 28 | AL35: 18.64750003 | AM35: 7.134350021 | AR35: 28 | AS35: 26.1081987 | AU35: 28 | AV35: 13.06778355 | AW35: 3.503620384 | AX35: 48.74014543 | AZ35: 28 | BA35: 34.71428571 | BB35: 44.365
B36: 29 | C36: 28 | D36: 27 | E36: 31 | F36: 31 | G36: 29 | H36: 28 | J36: 32 | K36: 28 | L36: 33 | M36: 3.333333333 | N36: 2.666666667 | O36: 29.66666667 | Q36: 1 | R36: 377.4 | S36: 35.853 | T36: 35.71811439 | U36: 35.71811439 | V36: -0.02662178007 | W36: -0.02662178007 | Y36: 29 | AA36: 29 | AB36: 3.637587926 | AC36: 5.648221093 | AH36: 29 | AI36: 0.01819412834 | AK36: 29 | AL36: 3.637587926 | AM36: 5.648221093 | AR36: 29 | AS36: 0.01819412834 | AU36: 29 | AV36: 2.54914662 | AW36: 2.773794739 | AX36: 2.342692629 | AZ36: 29 | BA36: 29.66666667 | BB36: 35.853
B37: 30 | E37: 35 | F37: 34 | J37: 33 | K37: 37 | L37: 36 | M37: 2 | N37: 2 | O37: 35 | Q37: 2 | R37: 366.1 | S37: 34.7795 | T37: 39.45560443 | U37: 39.45560443 | V37: 0.9229021667 | W37: 0.9229021667 | Y37: 30 | AA37: 30 | AB37: -7.699590577 | AC37: 8.74228005 | AH37: 30 | AI37: 21.86595261 | AK37: 30 | AL37: -7.699590577 | AM37: 8.74228005 | AR37: 30 | AS37: 21.86595261 | AU37: 30 | AV37: -5.395714328 | AW37: 4.293261544 | AX37: 6.781262407 | AZ37: 30 | BA37: 35 | BB37: 34.7795
B38: 31 | D38: 32 | E38: 34 | F38: 34 | G38: 30 | H38: 35 | J38: 30 | K38: 32 | L38: 32 | M38: 2.625 | N38: 2.375 | O38: 32.375 | Q38: 2 | R38: 353.7 | S38: 33.6015 | T38: 37.61605855 | U38: 37.61605855 | V38: 0.7923357659 | W38: 0.7923357659 | Y38: 31 | AA38: 31 | AB38: -1.254649047 | AC38: 0.1100479071 | AH38: 31 | AI38: 16.11668034 | AK38: 31 | AL38: -1.254649047 | AM38: 0.1100479071 | AR38: 31 | AS38: 16.11668034 | AU38: 31 | AV38: -0.8792321838 | AW38: 0.05404361847 | AX38: 14.30417235 | AZ38: 31 | BA38: 32.375 | BB38: 33.6015
B39: 32 | C39: 30 | E39: 32 | G39: 30 | I39: 33 | J39: 30 | K39: 32 | L39: 30 | M39: 2 | N39: 1 | O39: 31 | Q39: 1 | R39: 454 | S39: 43.13 | T39: 36.6524869 | U39: 36.6524869 | V39: -1.278438275 | W39: -1.278438275 | Y39: 32 | AA39: 32 | AB39: -5.995034659 | AC39: 1.088402499 | AH39: 32 | AI39: 41.95817599 | AK39: 32 | AL39: -5.995034659 | AM39: 1.088402499 | AR39: 32 | AS39: 41.95817599 | AU39: 32 | AV39: -4.201196685 | AW39: 0.5345054798 | AX39: 33.02127714 | AZ39: 32 | BA39: 31 | BB39: 43.13
B40: 33 | C40: 37 | D40: 34 | E40: 33 | F40: 32 | G40: 34 | H40: 36 | I40: 30 | J40: 32 | K40: 35 | L40: 33 | M40: 3.4 | N40: 3.6 | O40: 33.6 | Q40: 2 | R40: 423 | S40: 40.185 | T40: 38.47451329 | U40: 38.47451329 | V40: -0.3375912395 | W40: -0.3375912395 | Y40: 33 | AA40: 33 | AB40: 4.36105881 | AC40: 2.423422907 | AH40: 33 | AI40: 2.92576478 | AK40: 33 | AL40: 4.36105881 | AM40: 2.423422907 | AR40: 33 | AS40: 2.92576478 | AU40: 33 | AV40: 3.056140099 | AW40: 1.190122978 | AX40: 7.847922 | AZ40: 33 | BA40: 33.6 | BB40: 40.185
B41: 34 | C41: 34 | G41: 32 | H41: 30 | I41: 35 | J41: 32 | K41: 30 | L41: 34 | M41: 2.571428571 | N41: 2.428571429 | O41: 32.42857143 | Q41: 2 | R41: 398.8 | S41: 37.886 | T41: 37.6536003 | U41: 37.6536003 | V41: -0.04586770662 | W41: -0.04586770662 | Y41: 34 | AA41: 34 | AB41: 0.1935833003 | AC41: 0.148460808 | AH41: 34 | AI41: 0.05400962022 | AK41: 34 | AL41: 0.1935833003 | AM41: 0.148460808 | AR41: 34 | AS41: 0.05400962022 | AU41: 34 | AV41: 0.1356591856 | AW41: 0.0729078769 | AX41: 0.2524201145 | AZ41: 34 | BA41: 32.42857143 | BB41: 37.886
B42: 35 | D42: 36 | F42: 35 | G42: 34 | H42: 37 | I42: 31 | K42: 34 | L42: 36 | M42: 2.285714286 | N42: 3.714285714 | O42: 34.71428571 | Q42: 2 | R42: 448 | S42: 42.56 | T42: 39.25538175 | U42: 39.25538175 | V42: -0.6522179722 | W42: -0.6522179722 | Y42: 35 | AA42: 35 | AB42: 13.8263082 | AC42: 7.134350021 | AH42: 35 | AI42: 10.92050181 | AK42: 35 | AL42: 13.8263082 | AM42: 7.134350021 | AR42: 35 | AS42: 10.92050181 | AU42: 35 | AV42: 9.689191718 | AW42: 3.503620384 | AX42: 26.79526486 | AZ42: 35 | BA42: 34.71428571 | BB42: 42.56
B43: 36 | P43: =IFERROR(AVERAGE(C43:L43),"") ->  | Y43: 36 | AA43: 36 | AH43: 36 | AK43: 36 | AR43: 36 | AU43: 36 | AZ43: 36
B44: 37 | Y44: 37 | AA44: 37 | AH44: 37 | AK44: 37 | AR44: 37 | AU44: 37 | AZ44: 37
B45: 38 | Y45: 38 | AA45: 38 | AH45: 38 | AK45: 38 | AR45: 38 | AU45: 38 | AZ45: 38
B46: 39 | Y46: 39 | AA46: 39 | AH46: 39 | AK46: 39 | AR46: 39 | AU46: 39 | AZ46: 39
B47: 40 | Y47: 40 | AA47: 40 | AH47: 40 | AK47: 40 | AR47: 40 | AU47: 40 | AZ47: 40
B48: 41 | Y48: 41 | AA48: 41 | AH48: 41 | AK48: 41 | AR48: 41 | AU48: 41 | AZ48: 41
B49: 42 | Y49: 42 | AA49: 42 | AH49: 42 | AK49: 42 | AR49: 42 | AU49: 42 | AZ49: 42
B50: 43 | Y50: 43 | AA50: 43 | AH50: 43 | AK50: 43 | AR50: 43 | AU50: 43 | AZ50: 43
B51: 44 | Y51: 44 | AA51: 44 | AH51: 44 | AK51: 44 | AR51: 44 | AU51: 44 | AZ51: 44
B52: 45 | Y52: 45 | AA52: 45 | AH52: 45 | AK52: 45 | AR52: 45 | AU52: 45 | AZ52: 45
B53: 46 | Y53: 46 | AA53: 46 | AH53: 46 | AK53: 46 | AR53: 46 | AU53: 46 | AZ53: 46
B54: 47 | Y54: 47 | AA54: 47 | AH54: 47 | AK54: 47 | AR54: 47 | AU54: 47 | AZ54: 47
B55: 48 | Y55: 48 | AA55: 48 | AH55: 48 | AK55: 48 | AR55: 48 | AU55: 48 | AZ55: 48
B56: 49 | Y56: 49 | AA56: 49 | AH56: 49 | AK56: 49 | AR56: 49 | AU56: 49 | AZ56: 49
B57: 50 | Y57: 50 | AA57: 50 | AH57: 50 | AK57: 50 | AR57: 50 | AU57: 50 | AZ57: 50
O58: =IFERROR(IFERROR(SUM(P8:P57)/COUNT(P8:P57),SUM(O8:O57)/COUNT(O8:O57)),"") -> 32.04326531 | S58: =IFERROR(SUM(S8:S57)/COUNT(S8:S57),"") -> 37.38358571 | U58: =IFERROR(SUM(U8:U57)/COUNT(U8:U57),"") -> 37.38358571 | AB58: =IF(SUM(AB8:AB57)=0,"",SUM(AB8:AB57)) -> 395.6366754 | AC58: =IF(SUM(AC8:AC57)=0,"",SUM(AC8:AC57)) -> 564.5666602 | AH58: Sт | AI58: =IF(SQRT(SUM(AI8:AI57)/(COUNT(AI8:AI57)-2))=0,"",SQRT(SUM(AI8:AI57)/(COUNT(AI8:AI57)-2))) -> 5.066739027 | AL58: =IF(SUM(AL8:AL57)=0,"",SUM(AL8:AL57)) -> 395.6366754 | AM58: =IF(SUM(AM8:AM57)=0,"",SUM(AM8:AM57)) -> 564.5666602 | AR58: Sт | AS58: =IF(SQRT(SUM(AS8:AS57)/(COUNT(AS8:AS57)-2))=0,"",SQRT(SUM(AS8:AS57)/(COUNT(AS8:AS57)-2))) -> 5.066739027 | AV58: =IF(SUM(AV8:AV57)=0,"",SUM(AV8:AV57)) -> 277.2540249 | AW58: =IF(SUM(AW8:AW57)=0,"",SUM(AW8:AW57)) -> 277.2540249 | AX58: =IF(SUM(AX8:AX57)=0,"",SUM(AX8:AX57)) -> 1124.424889
O59: ср.зн. H | S59: cр.зн Rф (Мпа) | AH59: Sп < 1,5 Sт | AR59: Sп < 1,5 Sт | AW59: =IFERROR(SQRT(AW58),"") -> 16.65094667 | AX59: =IFERROR(SQRT(AX58),"") -> 33.53244532
AH60: Sп | AI60: =IFERROR((AI58*1.5)-(SQRT(SUM(AI8:AI57)/(COUNT(AI8:AI57)-1))),"") -> 2.608436464 | AR60: Sп | AS60: =IFERROR((AS58*1.5)-(SQRT(SUM(AS8:AS57)/(COUNT(AS8:AS57)-1))),"") -> 2.608436464 | AW60: =IFERROR(AW59*AX59,"") -> 558.3469587
AU61: =IFERROR(AV58/AW60,"") -> 0.4965622551
AF62: ПОГРЕШНОСТЬ | AU62: r < 0,7
AF63: Sт | AG63: =IF(AS58=0,"",AS58) -> 5.066739027 | AH63: =IFERROR(AG63/AG64*100,"") -> 13.55337892 | AL63: < 12%
AF64: Rф | AG64: =IF(U58=0,"",U58) -> 37.38358571 | AL64: > 15%
AF66: Н | AG66: RH
AF67: 5 | AG67: =IFERROR($AO$10+$AP$8*$AF$67,"") -> 18.43222296
AF68: 10 | AG68: =IFERROR($AO$10+$AP$8*$AF$68,"") -> 21.93611987
AF69: 15 | AG69: =IFERROR($AO$10+$AP$8*$AF$69,"") -> 25.44001678
AF70: 20 | AG70: =IFERROR($AO$10+$AP$8*$AF$70,"") -> 28.94391369
AF71: 25 | AG71: =IFERROR($AO$10+$AP$8*$AF$71,"") -> 32.4478106
AF72: 30 | AG72: =IFERROR($AO$10+$AP$8*$AF$72,"") -> 35.95170752
AF73: 35 | AG73: =IFERROR($AO$10+$AP$8*$AF$73,"") -> 39.45560443
AF74: 40 | AG74: =IFERROR($AO$10+$AP$8*$AF$74,"") -> 42.95950134
AF75: 45 | AG75: =IFERROR($AO$10+$AP$8*$AF$75,"") -> 46.46339825
AF76: 50 | AG76: =IFERROR($AO$10+$AP$8*$AF$76,"") -> 49.96729516
